bitfinex-derivatives/quotes_ETHF0:USTF0_20260306
["timestamp","ask_amount","ask_price","bid_price","bid_amount"]
[1772819960528,0.43946607,1968.0,1967.4,0.57365021]
[1772819960729,0.43946607,1967.8,1966.8,0.57365021]
[1772819960924,0.43946607,1967.6,1966.8,0.57365021]
[1772819961527,0.43946607,1967.5,1966.8,0.57365021]
[1772819961922,0.43946607,1967.5,1966.7,0.00370117]
[1772819962224,0.43946607,1967.5,1966.7,0.57735138]
[1772819962628,7.09874298,1967.4,1966.7,0.57735138]
[1772819963724,6.659,1967.5,1966.7,0.57735138]
[1772819964326,7.09879143,1967.5,1966.7,0.57735138]
[1772819964919,0.43979143,1967.5,1966.7,0.57735138]
[1772819965118,7.09979143,1967.6,1966.7,0.57735138]
[1772819965927,0.43979143,1967.8,1966.7,0.57735138]
[1772819966125,6.66,1967.8,1966.9,0.57365021]
[1772819966324,7.10264289,1967.8,1966.9,0.57365021]
[1772819967531,0.44264289,1967.7,1966.9,0.57365021]
[1772819967928,0.44264289,1967.7,1967.1,0.57365021]
[1772819971640,7.10264289,1967.7,1967.1,0.57365021]
[1772819971841,0.4451357,1967.6,1967.1,0.57365021]
[1772819973244,7.11106556,1967.7,1967.1,0.57365021]
[1772819973435,0.45106556,1967.7,1967.1,0.57365021]
[1772819973640,0.45106556,1967.8,1967.1,0.57365021]
[1772819978843,0.44799953,1967.4,1966.9,0.60198649]
[1772819979036,0.44799953,1967.3,1966.9,0.60198649]
[1772819979242,0.45282594,1967.3,1966.9,0.60198649]
[1772819979443,0.00482641,1967.3,1966.9,0.60198649]
[1772819981944,6.661,1967.4,1966.9,2.2930549]
[1772819982249,6.661,1967.4,1967.0,0.60198649]
[1772819983046,0.00446961,1967.4,1967.0,0.60198649]
[1772819985142,0.4553695,1967.4,1967.0,0.60198649]
[1772819985649,0.00446961,1967.4,1967.0,0.60198649]
[1772819986348,0.46159822,1967.4,1967.0,0.60198649]
[1772819986751,0.46159822,1967.4,1966.9,0.60198649]
[1772819989050,0.00446961,1967.4,1966.9,0.60198649]
[1772819989449,0.46245354,1967.4,1966.9,0.60198649]
[1772819989750,0.00446961,1967.4,1966.9,0.60198649]
[1772819990050,0.46245354,1967.4,1966.9,0.60198649]
[1772819992444,0.46245354,1967.4,1966.7,0.60568766]
[1772819992648,0.46016615,1967.2,1966.7,0.60568766]
[1772819992849,0.46016615,1967.1,1966.7,0.60568766]
[1772819995254,0.46016615,1967.1,1966.6,0.60198649]
[1772819995452,7.25927336,1967.2,1966.6,0.60198649]
[1772819996150,7.25927336,1967.2,1966.6,0.60847639]
[1772819996549,0.59827336,1967.1,1966.6,0.60847639]
[1772819999653,0.59827336,1967.1,1966.5,0.57351537]
[1772820000757,0.59827336,1967.1,1966.5,0.5774315]
[1772820001152,0.60274297,1967.4,1966.5,0.5774315]
[1772820001351,0.59827336,1967.2,1966.5,0.5774315]
[1772820002650,0.59827336,1967.2,1966.5,0.00391613]
[1772820003160,0.59827336,1967.2,1966.5,0.56271877]
[1772820004361,0.60452222,1967.3,1966.6,0.55880264]
[1772820005665,0.00446961,1967.4,1966.6,0.55880264]
[1772820005864,0.60899183,1967.4,1966.6,0.55880264]
[1772820006757,0.60452222,1967.2,1966.6,0.55880264]
[1772820006957,0.60452222,1967.2,1966.5,0.56271877]
[1772820007859,0.60452222,1967.0,1966.5,0.00391613]
[1772820008065,0.60452222,1966.8,1966.3,0.55880264]
[1772820009065,0.60452222,1966.8,1966.3,0.5646569]
[1772820011266,6.662,1966.9,1966.3,0.5646569]
[1772820011465,0.60452222,1967.0,1966.3,0.5646569]
[1772820011665,0.60452222,1967.2,1966.3,0.5646569]
[1772820011871,0.60452222,1967.3,1966.3,0.5646569]
[1772820012268,6.66646961,1967.4,1966.5,0.55880264]
[1772820012467,0.00446961,1967.4,1966.7,0.55880264]
[1772820012966,7.26652222,1967.7,1966.7,0.55880264]
[1772820013275,0.60452222,1967.7,1966.7,0.55880264]
[1772820013968,0.60967625,1967.7,1966.7,0.55880264]
[1772820014274,0.60452222,1967.6,1966.7,0.55880264]
[1772820018382,0.60967625,1967.7,1966.7,0.55880264]
[1772820022175,0.60452222,1967.5,1966.7,0.55880264]
[1772820023788,0.60967625,1967.7,1966.9,0.55880264]
[1772820027384,0.25412,1967.6,1966.5,0.55880264]
[1772820027684,0.60452222,1967.5,1966.5,0.55880264]
[1772820027885,0.60452222,1967.5,1966.7,0.55880264]
[1772820028286,0.60967625,1967.7,1966.7,0.55880264]
[1772820029287,0.60967625,1967.7,1966.9,0.55880264]
[1772820030088,0.00515403,1967.7,1967.1,0.55880264]
[1772820031490,0.60967625,1967.7,1967.1,0.55880264]
[1772820031689,0.00515403,1967.7,1967.1,0.55880264]
[1772820031889,0.57624165,1968.2,1967.1,0.55880264]
[1772820032088,0.57624165,1968.2,1967.3,0.57132332]
[1772820032692,0.57624165,1968.2,1967.4,41.37132332]
[1772820032893,0.58264968,1968.2,1967.4,41.37132332]
[1772820033494,0.58264968,1968.2,1967.5,0.57132332]
[1772820034096,0.00640803,1968.2,1967.5,0.57132332]
[1772820034393,0.57624165,1968.5,1967.5,0.57132332]
[1772820035501,0.5817735,1968.5,1967.5,0.57132332]
[1772820035699,7.23724165,1968.8,1967.7,0.57132332]
[1772820035895,0.57624165,1968.7,1967.7,0.57132332]
[1772820036696,0.57624165,1968.7,1967.7,0.57549894]
[1772820036896,0.5816356,1968.7,1967.7,0.57549894]
[1772820037499,0.57624165,1968.5,1967.7,0.57549894]
[1772820037701,0.57624165,1968.5,1967.7,0.00417562]
[1772820037895,0.57624165,1968.3,1967.7,0.00417562]
[1772820038398,0.57624165,1968.3,1967.7,0.57549894]
[1772820040904,0.57624165,1968.3,1967.7,0.00417562]
[1772820041102,0.57624165,1968.3,1967.3,0.57132332]
[1772820041303,0.57624165,1968.1,1967.3,0.57132332]
[1772820041902,0.57624165,1968.4,1967.3,0.57132332]
[1772820042302,0.57624165,1968.4,1967.3,0.57557257]
[1772820043296,0.57624165,1968.6,1967.5,0.57132332]
[1772820043499,0.57624165,1968.6,1967.7,0.57132332]
[1772820044204,0.57624165,1968.6,1967.9,0.57132332]
[1772820044405,0.5816356,1968.7,1967.9,0.57132332]
[1772820046000,0.00539395,1968.7,1967.9,0.57132332]
[1772820046504,6.56911999,1969.5,1968.1,0.57132332]
[1772820046505,0.57624165,1969.2,1968.1,0.57132332]
[1772820046698,0.57624165,1969.2,1968.2,0.57132332]
[1772820047207,0.57624165,1969.2,1968.4,0.57132332]
[1772820047403,0.58168322,1969.2,1968.4,0.57132332]
[1772820048007,0.58168322,1969.2,1968.3,40.8]
[1772820048205,0.58168322,1969.2,1968.3,41.37132332]
[1772820049111,0.58168322,1969.2,1968.4,0.57132332]
[1772820049307,0.58168322,1969.2,1968.1,0.57132332]
[1772820049807,0.58168322,1969.2,1968.2,40.8]
[1772820050008,0.58168322,1969.2,1968.3,0.57132332]
[1772820055513,0.55506916,1969.1,1968.3,0.57132332]
[1772820060526,0.00544157,1969.2,1968.3,0.57132332]
[1772820060818,0.00544157,1969.2,1968.5,0.60118258]
[1772820061920,0.57019273,1969.2,1968.5,0.60118258]
[1772820062215,0.00544157,1969.2,1968.5,0.60118258]
[1772820062414,0.56475116,1969.5,1968.8,0.55810379]
[1772820063213,0.56475116,1969.5,1968.6,0.55810379]
[1772820063415,0.56926586,1969.5,1968.6,0.56183958]
[1772820064222,0.56475116,1969.3,1968.6,0.56183958]
[1772820065715,0.56475116,1969.3,1968.6,0.00373579]
[1772820066220,0.56475116,1969.3,1968.6,0.56183958]
[1772820066809,0.56926586,1969.5,1968.6,0.56183958]
[1772820068915,0.0045147,1969.5,1968.6,0.56183958]
[1772820070523,0.0045147,1969.5,1968.8,0.55810379]
[1772820070920,0.56926586,1969.5,1968.8,0.55810379]
[1772820072118,0.56475116,1969.3,1968.6,0.00373579]
[1772820072314,0.56475116,1969.1,1968.3,0.55810379]
[1772820072919,0.56475116,1969.4,1968.3,0.55810379]
[1772820073321,0.56475116,1969.4,1968.5,0.55810379]
[1772820074326,0.56475116,1969.4,1968.5,16.41410379]
[1772820074521,0.0045147,1969.5,1968.6,0.55810379]
[1772820074825,0.0045147,1969.5,1968.7,0.55810379]
[1772820075626,0.0045147,1969.5,1968.8,0.55810379]
[1772820076020,0.56926586,1969.5,1968.8,0.55810379]
[1772820077025,0.56475116,1970.0,1969.0,0.55810379]
[1772820077225,0.56475116,1970.0,1969.2,0.55810379]
[1772820077425,0.56475116,1970.3,1969.2,0.55810379]
[1772820077727,0.56475116,1970.3,1969.1,0.25393]
[1772820077728,0.56475116,1970.3,1969.4,0.55810379]
[1772820078025,0.57097464,1970.3,1969.4,0.55810379]
[1772820078425,0.57097464,1970.3,1969.6,0.55810379]
[1772820078727,1.20684713,1970.4,1969.6,0.55810379]
[1772820079128,0.56475116,1970.3,1969.6,0.55810379]
[1772820079428,1.77159829,1970.4,1969.6,0.55810379]
[1772820079733,1.7735412,1970.4,1969.6,0.55810379]
[1772820080029,0.68899503,1970.4,1969.7,0.55810379]
[1772820080225,0.48624116,1970.4,1969.7,0.56460138]
[1772820080631,0.56475116,1970.3,1969.7,0.56460138]
[1772820081221,0.48624116,1970.4,1969.7,0.56460138]
[1772820081531,1.05099232,1970.4,1969.7,0.56460138]
[1772820081724,0.48624116,1970.4,1969.7,0.56460138]
[1772820082130,0.56475116,1971.2,1969.9,0.55810379]
[1772820082431,0.56475116,1971.2,1970.3,0.55810379]
[1772820082626,0.56475116,1971.2,1970.3,16.40810379]
[1772820082827,4.21742303,1971.8,1970.3,0.55810379]
[1772820083131,0.56475116,1971.6,1970.7,0.55810379]
[1772820083332,0.56475116,1971.9,1971.1,0.55810379]
[1772820083632,0.56475116,1972.4,1971.1,0.56167254]
[1772820083832,0.56475116,1972.4,1971.3,0.55810379]
[1772820084625,2.82681722,1972.6,1971.4,2.78706161]
[1772820084626,0.56475116,1972.5,1971.4,2.78706161]
[1772820084830,0.56475116,1972.5,1971.5,0.55810379]
[1772820085028,0.56475116,1972.3,1971.3,0.55810379]
[1772820085425,0.56475116,1972.3,1971.2,40.8]
[1772820085630,0.56475116,1972.3,1971.3,0.55810379]
[1772820086339,0.56475116,1971.9,1971.1,0.00356875]
[1772820086533,0.56475116,1971.9,1971.1,0.56167254]
[1772820086730,0.56475116,1971.9,1971.1,0.00356875]
[1772820086931,0.56475116,1971.7,1970.4,0.55810379]
[1772820087333,0.56475116,1971.7,1970.3,15.853]
[1772820087334,0.56475116,1971.7,1970.6,0.55810379]
[1772820088029,0.56475116,1971.7,1970.6,0.56333143]
[1772820090336,0.56475116,1971.7,1970.8,0.55810379]
[1772820090836,0.56831991,1971.9,1971.0,0.55810379]
[1772820091037,0.00356875,1971.9,1971.2,0.55810379]
[1772820092035,0.56139519,1972.5,1971.2,0.55810379]
[1772820092237,0.56139519,1972.5,1971.3,0.5443185]
[1772820092633,0.56139519,1972.5,1971.4,0.5443185]
[1772820092938,0.56139519,1972.5,1971.2,0.5443185]
[1772820093245,0.56139519,1972.3,1971.2,0.5443185]
[1772820093444,0.56139519,1972.1,1971.0,0.5443185]
[1772820093943,0.56139519,1971.9,1970.8,0.5443185]
[1772820094339,0.56139519,1971.7,1970.8,0.5443185]
[1772820094639,0.56139519,1972.0,1970.8,0.5443185]
[1772820095035,0.56139519,1971.8,1970.8,0.5443185]
[1772820096939,0.56139519,1972.7,1970.8,0.5443185]
[1772820097138,0.56139519,1972.7,1971.8,0.5443185]
[1772820097334,0.56139519,1973.3,1972.0,0.5443185]
[1772820097539,0.56139519,1973.3,1972.2,0.5443185]
[1772820098241,0.56139519,1974.3,1972.9,0.5443185]
[1772820098740,0.56139519,1974.3,1973.0,15.784]
[1772820098935,0.56139519,1974.3,1973.0,16.3283185]
[1772820098936,0.56139519,1974.1,1973.0,16.3283185]
[1772820099339,0.56139519,1974.1,1972.9,16.3403185]
[1772820099541,0.56139519,1974.1,1973.0,0.5443185]
[1772820099940,0.56139519,1974.1,1973.1,15.804]
[1772820100240,0.56139519,1974.1,1973.2,0.5443185]
[1772820100644,0.56139519,1974.1,1972.6,0.5443185]
[1772820100835,0.56139519,1974.1,1972.2,0.2535]
[1772820100836,0.56139519,1974.1,1973.0,0.5443185]
[1772820101042,0.56139519,1974.1,1973.2,0.5443185]
[1772820101240,0.56139519,1973.9,1972.8,0.5443185]
[1772820101440,0.56139519,1973.7,1972.2,0.5443185]
[1772820101645,0.56139519,1973.5,1972.4,0.5443185]
[1772820101944,0.56139519,1974.0,1972.4,0.5443185]
[1772820102443,0.56139519,1974.0,1972.8,0.5443185]
[1772820102644,0.56139519,1974.6,1973.2,0.5443185]
[1772820102838,0.56139519,1974.6,1973.4,0.5443185]
[1772820103036,0.56139519,1974.6,1973.5,40.8]
[1772820103235,0.56139519,1974.6,1973.5,41.3443185]
[1772820103636,0.56139519,1974.4,1973.4,0.00399572]
[1772820103836,0.56139519,1974.2,1973.4,0.00399572]
[1772820104337,0.56139519,1974.2,1973.4,0.54831422]
[1772820104740,0.56139519,1974.8,1973.4,0.54831422]
[1772820105341,0.56139519,1974.6,1973.4,0.54831422]
[1772820105645,0.56139519,1974.6,1973.5,0.5443185]
[1772820106648,0.56139519,1974.6,1973.4,0.00399572]
[1772820106945,0.56139519,1974.4,1973.4,0.00399572]
[1772820107338,0.56139519,1974.2,1973.4,0.00399572]
[1772820107736,0.56139519,1974.2,1972.7,0.5443185]
[1772820107941,0.56139519,1973.8,1972.7,0.5443185]
[1772820108446,0.56139519,1973.8,1972.8,0.5443185]
[1772820108643,0.56139519,1974.0,1972.8,0.5443185]
[1772820108843,0.56539091,1974.0,1972.8,0.54833535]
[1772820110237,0.00399572,1974.0,1973.0,0.5443185]
[1772820110541,0.00399572,1974.0,1973.2,0.5443185]
[1772820110941,0.56539091,1974.0,1973.2,0.5443185]
[1772820111243,0.00399572,1974.0,1973.2,0.5443185]
[1772820111642,0.56139519,1974.4,1973.2,0.5443185]
[1772820111844,0.56139519,1974.4,1973.4,0.5443185]
[1772820112449,0.56139519,1974.6,1973.4,0.5443185]
[1772820112750,0.56139519,1974.6,1973.6,0.5443185]
[1772820112945,0.25314,1975.1,1973.8,0.5443185]
[1772820112946,0.56139519,1975.0,1973.8,0.5443185]
[1772820113144,0.56139519,1975.0,1974.0,0.5443185]
[1772820113647,0.56139519,1975.1,1974.0,0.5443185]
[1772820113850,0.56139519,1975.1,1973.9,15.348]
[1772820113851,0.56139519,1975.1,1974.2,0.5443185]
[1772820114045,0.56139519,1975.1,1974.2,0.54940264]
[1772820115253,0.56139519,1975.1,1974.2,0.00508414]
[1772820115658,0.56139519,1975.1,1974.2,0.55307944]
[1772820116355,0.55014012,1974.5,1973.3,0.5479953]
[1772820117153,0.55014012,1974.5,1973.4,0.5479953]
[1772820117463,0.55522426,1974.5,1973.4,0.55292142]
[1772820118758,0.55522426,1974.5,1973.5,0.5479953]
[1772820119157,0.55522426,1974.5,1973.4,0.00492612]
[1772820119359,0.55522426,1974.5,1973.4,0.55292142]
[1772820120759,0.55014012,1974.3,1973.4,0.55292142]
[1772820121062,0.55014012,1974.1,1973.4,0.55292142]
[1772820121666,0.55014012,1974.1,1973.4,0.00492612]
[1772820122260,0.2533,1973.8,1973.0,1.56497493]
[1772820122470,1.50448423,1973.7,1972.8,1.56497493]
[1772820122669,1.50448423,1973.7,1972.6,1.56497493]
[1772820123164,1.50448423,1973.7,1972.6,1.56930843]
[1772820124664,1.50448423,1973.5,1972.6,1.56930843]
[1772820125873,1.50448423,1974.2,1972.7,0.25344]
[1772820126172,1.50448423,1974.0,1972.8,1.56497493]
[1772820126365,1.50448423,1974.0,1973.0,1.56497493]
[1772820127173,1.50448423,1973.8,1972.7,1.56497493]
[1772820127375,1.50448423,1973.8,1972.8,1.56497493]
[1772820129273,1.50448423,1973.6,1972.7,15.708]
[1772820129671,1.50448423,1973.6,1972.6,1.56930843]
[1772820129873,1.50448423,1973.6,1972.6,0.0043335]
[1772820130278,1.50448423,1973.6,1972.6,1.56930843]
[1772820130569,1.50448423,1974.1,1972.7,1.56497493]
[1772820130771,1.50448423,1974.1,1972.9,1.56497493]
[1772820130975,1.50448423,1974.1,1973.1,1.56497493]
[1772820131775,1.50448423,1974.1,1973.3,1.56497493]
[1772820133673,1.50448423,1974.4,1973.3,1.56497493]
[1772820135977,1.50448423,1974.4,1973.4,15.917]
[1772820136173,1.50448423,1974.4,1973.4,17.48197493]
[1772820136373,1.75770423,1974.4,1973.4,15.917]
[1772820136575,1.50448423,1974.2,1973.2,1.56497493]
[1772820136774,1.50448423,1974.0,1973.2,1.56497493]
[1772820137978,1.50448423,1973.6,1972.8,1.56497493]
[1772820138976,1.50448423,1973.6,1972.7,15.948]
[1772820139278,1.50448423,1973.6,1972.7,17.51297493]
[1772820139477,1.50448423,1973.6,1972.8,1.56497493]
[1772820144083,1.50448423,1973.8,1972.8,1.56497493]
[1772820145273,1.50448423,1974.3,1973.0,1.56497493]
[1772820145479,1.75773423,1974.3,1973.2,1.56497493]
[1772820145783,1.50448423,1974.1,1973.2,1.56497493]
[1772820149780,1.50448423,1973.7,1973.0,1.56497493]
[1772820152880,1.38726141,1974.1,1973.0,1.56497493]
[1772820153183,0.25325,1974.3,1973.0,1.56497493]
[1772820153184,1.94394605,1974.0,1973.0,1.56497493]
[1772820153383,1.38726141,1974.0,1973.0,1.56497493]
[1772820153781,1.38726141,1974.2,1973.2,1.3948639]
[1772820153976,0.55685848,1974.1,1973.4,1.3948639]
[1772820154175,1.38726141,1974.2,1973.4,1.3948639]
[1772820157585,1.38726141,1974.2,1973.2,1.3948639]
[1772820161386,1.38726141,1974.2,1973.3,1.3948639]
[1772820161586,1.38726141,1974.4,1973.4,1.3948639]
[1772820161778,1.38726141,1974.4,1973.4,7.80165863]
[1772820161978,1.38726141,1974.4,1973.5,1.3948639]
[1772820166391,1.38726141,1974.2,1973.2,7.80165863]
[1772820166589,1.38726141,1974.2,1973.3,1.3948639]
[1772820172395,1.39234555,1974.5,1973.8,1.3948639]
[1772820172599,1.38726141,1975.0,1973.9,1.3948639]
[1772820172797,1.94436353,1974.9,1973.9,1.3948639]
[1772820172999,1.38726141,1974.9,1974.1,1.3948639]
[1772820173595,1.39218753,1974.9,1974.1,1.4013563]
[1772820178100,1.39218753,1974.9,1974.1,0.0064924]
[1772820178999,1.28563103,1974.7,1974.1,0.0064924]
[1772820179200,1.28563103,1974.7,1973.8,1.32987026]
[1772820179506,1.28563103,1974.5,1973.6,1.32987026]
[1772820179804,1.28563103,1974.5,1973.2,7.80165863]
[1772820179805,1.28563103,1974.5,1973.4,1.32987026]
[1772820180193,1.28563103,1974.5,1973.4,1.33355979]
[1772820180397,1.28563103,1974.3,1973.4,0.00368953]
[1772820180602,1.28563103,1974.1,1973.4,1.33355979]
[1772820182004,1.28563103,1974.1,1973.4,0.00368953]
[1772820182904,1.20790234,1973.9,1973.4,0.00368953]
[1772820184098,1.46120234,1973.9,1972.9,1.21258442]
[1772820185001,1.20790234,1973.7,1972.9,1.21258442]
[1772820185205,1.20790234,1973.7,1972.9,0.00359614]
[1772820185403,1.20790234,1973.5,1972.9,0.00359614]
[1772820185606,1.2137673,1973.5,1972.5,17.36858442]
[1772820185806,1.20790234,1973.3,1972.3,42.01258442]
[1772820186010,1.20790234,1973.1,1972.3,1.21258442]
[1772820186906,1.20790234,1973.1,1972.3,0.00653765]
[1772820187311,1.20790234,1972.9,1972.3,0.00653765]
[1772820187609,1.20790234,1972.9,1972.1,1.21258442]
[1772820188408,1.20790234,1973.4,1972.2,1.21258442]
[1772820189411,1.20790234,1973.4,1972.3,16.177]
[1772820189705,1.20790234,1973.4,1972.4,1.21258442]
[1772820191907,1.46126234,1973.4,1972.4,1.21258442]
[1772820192312,1.46126234,1973.4,1972.1,0.00502356]
[1772820192313,1.20790234,1973.1,1972.1,0.00502356]
[1772820192504,1.20790234,1973.1,1972.1,1.21760798]
[1772820193012,1.20790234,1973.1,1972.1,0.00502356]
[1772820193208,1.20790234,1973.1,1972.1,1.21760798]
[1772820194911,1.20790234,1972.9,1972.1,0.00502356]
[1772820195413,0.2534,1973.0,1972.1,0.00502356]
[1772820195414,1.20790234,1972.7,1972.1,0.00502356]
[1772820196108,1.20790234,1972.7,1972.1,1.21760798]
[1772820196305,1.20790234,1972.7,1971.7,42.01258442]
[1772820196502,1.20790234,1972.7,1971.7,1.21258442]
[1772820197509,1.20790234,1972.7,1971.7,1.21668837]
[1772820200112,1.20790234,1972.7,1971.7,0.00410395]
[1772820200506,1.20790234,1972.5,1971.7,0.00410395]
[1772820201814,1.20790234,1972.5,1971.7,1.21668837]
[1772820203211,1.20790234,1972.5,1971.7,0.00410395]
[1772820203410,1.20790234,1972.3,1971.7,0.00410395]
[1772820205712,1.20790234,1972.3,1971.4,1.21258442]
[1772820206616,1.20790234,1972.3,1971.4,1.21656863]
[1772820206817,1.20790234,1972.5,1971.4,1.21656863]
[1772820207011,1.20790234,1972.9,1971.6,1.21258442]
[1772820207216,1.20790234,1972.9,1972.0,1.21258442]
[1772820207819,1.20790234,1973.3,1972.0,1.21258442]
[1772820209520,1.20790234,1973.3,1972.2,1.21258442]
[1772820210918,1.20790234,1973.1,1972.1,42.01258442]
[1772820211922,1.20790234,1973.1,1972.1,1.21258442]
[1772820212424,1.11939668,1972.9,1972.1,1.21258442]
[1772820212620,1.11939668,1972.8,1972.1,1.21258442]
[1772820213518,1.11939668,1972.6,1971.7,1.11933665]
[1772820215127,6.89744,1972.7,1971.7,1.11933665]
[1772820215128,1.11939668,1972.4,1971.7,1.11933665]
[1772820215827,1.37288668,1972.4,1971.5,1.11933665]
[1772820216027,1.11939668,1972.2,1971.5,1.11933665]
[1772820216221,4.2319307,1972.6,1971.5,1.11933665]
[1772820216426,1.11939668,1972.4,1971.5,1.11933665]
[1772820216625,0.55730365,1972.3,1971.5,1.11933665]
[1772820216825,1.11939668,1972.4,1971.5,1.11933665]
[1772820217722,6.644,1972.7,1971.5,1.11933665]
[1772820217928,7.64905411,1972.6,1971.5,1.11933665]
[1772820218228,1.11939668,1972.6,1971.5,1.11933665]
[1772820220126,4.2319307,1972.9,1971.6,1.11933665]
[1772820220323,7.65374471,1972.8,1971.6,1.11933665]
[1772820220525,1.11939668,1972.8,1971.7,1.11933665]
[1772820220725,1.11939668,1972.8,1971.8,1.11933665]
[1772820221031,1.11939668,1972.6,1971.8,1.11933665]
[1772820221527,1.11939668,1972.8,1971.8,1.11933665]
[1772820221729,1.11939668,1972.8,1972.0,1.11933665]
[1772820221928,1.11939668,1972.6,1972.0,1.11933665]
[1772820223036,1.11939668,1972.8,1972.0,1.11933665]
[1772820223432,0.55846119,1972.7,1972.0,1.11933665]
[1772820223638,1.11939668,1972.8,1972.0,1.11933665]
[1772820223838,1.11939668,1972.6,1972.0,1.11933665]
[1772820224230,1.11939668,1972.8,1972.0,1.11933665]
[1772820224538,1.11939668,1972.6,1972.0,1.11933665]
[1772820226138,1.11939668,1972.6,1971.8,1.11933665]
[1772820229837,1.11939668,1972.4,1971.8,1.11933665]
[1772820230042,1.11939668,1972.4,1971.5,1.11933665]
[1772820230240,1.11939668,1972.2,1971.4,1.12332086]
[1772820230836,1.11939668,1972.5,1971.4,1.12332086]
[1772820231039,1.11939668,1972.3,1971.4,1.12332086]
[1772820232148,1.11939668,1972.1,1971.4,1.12332086]
[1772820232348,1.1253412,1972.1,1971.4,1.12332086]
[1772820233141,0.00594452,1972.1,1971.4,1.12332086]
[1772820233447,1.1253412,1972.1,1971.4,1.12332086]
[1772820233648,0.00594452,1972.1,1971.4,1.12332086]
[1772820233947,1.11939668,1972.5,1971.4,1.37692086]
[1772820234948,1.12480202,1972.5,1971.4,1.37692086]
[1772820236543,1.12480202,1972.5,1971.4,1.12332086]
[1772820236845,1.09885419,1972.3,1971.5,1.06791881]
[1772820237149,1.35234419,1972.3,1971.5,1.06791881]
[1772820238450,1.10425953,1972.5,1971.5,1.06791881]
[1772820238649,1.10425953,1972.5,1971.4,0.25759421]
[1772820238650,1.10425953,1972.5,1971.6,1.06791881]
[1772820238852,1.10425953,1972.5,1971.8,1.06791881]
[1772820239451,1.10425953,1972.5,1971.7,16.265]
[1772820240146,1.09885419,1972.3,1971.6,1.06791881]
[1772820241148,1.10425953,1972.5,1971.6,1.06791881]
[1772820241357,1.10425953,1972.5,1971.7,1.06791881]
[1772820242740,1.10425953,1972.5,1971.7,1.32148881]
[1772820242945,0.00540534,1972.5,1971.7,1.32148881]
[1772820243143,1.04066613,1972.5,1971.7,1.06791881]
[1772820246851,0.00540534,1972.5,1971.7,1.06791881]
[1772820247451,1.04066613,1972.5,1971.7,1.06791881]
[1772820250258,1.03526079,1972.1,1971.4,0.00398421]
[1772820250454,1.03526079,1971.9,1971.4,0.00398421]
[1772820251157,1.03526079,1971.9,1971.4,1.0397525]
[1772820251355,6.644,1972.3,1971.4,1.0397525]
[1772820251356,1.03526079,1972.1,1971.4,1.0397525]
[1772820256563,1.03526079,1972.3,1971.4,1.0397525]
[1772820258252,1.03526079,1972.3,1971.4,8.84141113]
[1772820258452,1.03526079,1972.3,1971.5,1.03576829]
[1772820258662,7.68466613,1972.5,1971.5,1.03576829]
[1772820258854,1.59507809,1972.4,1971.5,1.03576829]
[1772820259054,1.03526079,1972.4,1971.5,1.03576829]
[1772820259259,0.00540534,1972.5,1971.6,1.03576829]
[1772820259859,1.04066613,1972.5,1971.6,1.03576829]
[1772820260361,1.04066613,1972.5,1971.7,1.03576829]
[1772820260558,0.00540534,1972.5,1971.9,1.03576829]
[1772820260758,10.8769307,1972.9,1972.1,1.03576829]
[1772820260759,1.03526079,1972.9,1972.1,1.03576829]
[1772820260960,1.03526079,1973.1,1972.2,1.03576829]
[1772820261262,1.03526079,1973.1,1972.4,1.03576829]
[1772820261760,0.0050747,1973.1,1972.4,1.03576829]
[1772820262161,1.04033549,1973.1,1972.4,1.03576829]
[1772820262663,0.0050747,1973.1,1972.4,1.03576829]
[1772820264465,1.03526079,1973.4,1972.4,1.03576829]
[1772820265067,1.03526079,1973.4,1972.4,1.28923829]
[1772820265361,1.03929012,1973.4,1972.4,1.03576829]
[1772820265565,1.29265012,1973.4,1972.5,1.03576829]
[1772820266565,1.29265012,1973.4,1972.3,1.03576829]
[1772820266870,1.03526079,1972.7,1971.9,16.305]
[1772820267361,1.03526079,1972.7,1971.9,17.34076829]
[1772820269367,1.03526079,1972.5,1971.7,1.03576829]
[1772820269564,1.03526079,1972.5,1971.6,16.32]
[1772820269768,1.03526079,1972.5,1971.5,1.03576829]
[1772820269964,0.55731937,1972.4,1971.5,1.03576829]
[1772820270169,1.03526079,1972.3,1971.5,1.03576829]
[1772820270466,1.03526079,1972.3,1971.4,0.00398421]
[1772820270769,1.03526079,1971.9,1970.9,16.33]
[1772820270969,1.03526079,1971.9,1970.9,17.36576829]
[1772820271271,1.03526079,1971.9,1971.0,1.03576829]
[1772820271868,1.03940946,1971.9,1971.0,1.04138108]
[1772820272069,0.93151181,1971.7,1971.0,0.00561279]
[1772820273872,0.93151181,1971.3,1970.5,17.33181865]
[1772820274068,0.93151181,1971.3,1970.5,0.98781865]
[1772820274670,6.644,1971.5,1970.5,0.98781865]
[1772820274671,0.93151181,1971.1,1970.5,0.00502263]
[1772820275074,0.93151181,1971.1,1970.1,0.98781865]
[1772820275270,0.93151181,1971.1,1969.9,41.78781865]
[1772820275763,0.93151181,1970.9,1969.9,41.78781865]
[1772820275970,0.93151181,1970.9,1969.9,0.99361953]
[1772820276164,0.93151181,1970.6,1969.5,0.98781865]
[1772820276967,0.93151181,1970.4,1969.1,0.98781865]
[1772820277169,0.93151181,1970.2,1969.1,0.98781865]
[1772820277374,0.93779395,1970.2,1969.1,0.99318751]
[1772820278072,0.00628214,1970.2,1969.1,0.99318751]
[1772820279878,0.00628214,1970.2,1969.3,0.98781865]
[1772820280274,0.93151181,1971.0,1969.5,0.98781865]
[1772820280474,0.93151181,1971.0,1969.7,0.98781865]
[1772820281282,0.93631762,1971.0,1969.7,0.98781865]
[1772820281474,0.93631762,1971.0,1969.9,0.98781865]
[1772820281475,0.00480581,1971.0,1969.9,0.98781865]
[1772820281675,0.00480581,1971.0,1969.8,0.25382]
[1772820281676,0.00480581,1971.0,1970.1,0.98781865]
[1772820281876,0.93151181,1971.4,1970.3,0.98781865]
[1772820282272,0.93151181,1971.4,1970.4,0.25374]
[1772820282478,0.93151181,1972.0,1970.5,0.98781865]
[1772820282982,0.93755697,1972.0,1970.7,0.98781865]
[1772820283181,0.93755697,1972.0,1970.9,0.98781865]
[1772820285077,0.00604516,1972.0,1971.1,0.98781865]
[1772820285281,0.93755697,1972.0,1971.1,0.98781865]
[1772820285481,0.93755697,1972.0,1970.9,0.98781865]
[1772820285682,0.93151181,1971.8,1970.9,0.98781865]
[1772820288482,0.93151181,1971.8,1970.6,0.98781865]
[1772820291393,0.25958516,1972.0,1970.5,0.00637102]
[1772820291394,0.93151181,1971.6,1970.5,0.00637102]
[1772820291592,0.93151181,1971.6,1970.5,0.99418967]
[1772820292384,0.93151181,1971.4,1970.5,0.99418967]
[1772820296292,0.91442587,1971.9,1970.5,0.99418967]
[1772820298090,0.91442587,1971.9,1970.6,0.25371]
[1772820298296,0.91442587,1971.9,1970.7,0.8910867]
[1772820299198,0.91442587,1971.7,1970.7,0.8910867]
[1772820300299,0.91442587,1971.9,1970.9,0.8910867]
[1772820300496,0.00604516,1972.0,1970.9,0.8910867]
[1772820300794,0.00604516,1972.0,1971.1,3.67109069]
[1772820301100,0.00604516,1972.0,1971.2,0.8910867]
[1772820301399,0.00604516,1972.0,1971.4,0.8910867]
[1772820301597,0.92047103,1972.0,1971.4,0.8910867]